{"text_format":"1","workbook":"xlsx","n_sheets":1,"sheets":["Travel Macro"],"not_rendered":{"charts":0,"images":0,"macros":1,"external_links":0,"defined_names":0,"comments":0,"pivot_tables":0},"unopened":[],"bounds":{"document_bytes":16777216,"sheet_cells":100000,"rows_first":2000,"rows_last":500,"rows_between":2000,"halvings":0,"cell_chars":16384,"cell_head_chars":4096},"cells_cut":0,"cells_raw":0,"read":"whole","date_system":"1900"}

{"sheet":"Travel Macro","index":0,"n_rows":29,"n_cols":9,"rows_kept":29,"cut":false,"hidden":false,"merged":[[5,1,5,3],[6,1,6,3],[7,1,7,3],[0,0,0,8],[1,0,1,8],[6,5,6,6],[7,5,7,6]]}
["Westland Plains Human Resources Consulting"]
["Travel Expense Report"]
[]
["Employee Information:",null,null,null,null,null,null,"Trip Description:"]
[]
["Name","Nancy Jones",null,null,null,null,null,"From"]
["Date","2025-09-21",null,null,"Position","Consultant",null,"To"]
["Dept","Customer Systems",null,null,"Supervisor","Brad Wells",null,"Purpose"]
[]
["Date","Entertainment","Account","Transportation","Lodging","Meals","Gas","Other","Total"]
[null,null,null,null,null,null,null,null,{"$f":"SUM(B11:H11)","v":0}]
[null,null,null,null,null,null,null,null,{"$f":"SUM(B12:H12)","v":0}]
[null,null,null,null,null,null,null,null,0]
[null,null,null,null,null,null,null,null,0]
[null,null,null,null,null,null,null,null,0]
[null,null,null,null,null,null,null,null,0]
[null,null,null,null,null,null,null,null,0]
[null,null,null,null,null,null,null,null,0]
[null,null,null,null,null,null,null,null,0]
[null,null,null,null,null,null,null,null,0]
[null,null,null,null,null,null,null,null,0]
[null,null,null,null,null,null,null,null,0]
[null,null,null,null,null,null,null,null,0]
["Totals",{"$f":"SUM(B11:B23)","v":0},0,{"$f":"SUM(D11:D23)","v":0},0,0,0,0,0]
[null,null,null,null,null,null,"Advances"]
["Primary Transportation Mode",null,null,null,null,null,"Amount Due",null,{"$f":"I24-I25","v":0}]
[]
[null,null,"Distance One Way"]
[null,null,"Personal Car Mileage"]